fUSD/lending_fUSD_20240419
["ID","MTS","AMOUNT","RATE_DAILY","PERIOD"]
[322934816,1713531820934,-150.0,0.000155,4]
[322934817,1713531821579,-150.0,0.000155,4]
[322934818,1713531822296,-150.0,0.000155,4]
[322934819,1713531822944,-150.0,0.000155,4]
[322934820,1713531823836,-150.0,0.000155,4]
[322934821,1713531824709,-150.0,0.000155,4]
[322934822,1713531825377,-150.0,0.000155,4]
[322934823,1713531826011,-150.0,0.000155,4]
[322934824,1713531827473,-150.0,0.000155,4]
[322934825,1713531828726,-150.0,0.000155,4]
[322934826,1713531832860,-150.0,0.000155,4]
[322934827,1713531833907,-150.0,0.000155,4]
[322934828,1713531835073,-150.0,0.000155,4]
[322934829,1713531835980,-150.0,0.000155,4]
[322934830,1713531836898,-150.0,0.000155,4]
[322934831,1713531838751,-150.0,0.000155,4]
[322934832,1713531838895,-2083.0,0.000155,4]
[322934833,1713531839392,150.0,0.000124,2]
[322934834,1713531839414,97.82015446,0.000124,2]
[322934835,1713531841094,-150.0,0.000155,4]
[322934836,1713531842448,-150.0,0.000155,4]
[322934837,1713531843344,-150.0,0.000155,4]
[322934838,1713531844478,-150.0,0.000155,4]
[322934839,1713531846971,-150.0,0.000155,4]
[322934840,1713531849826,-150.0,0.000155,4]
[322934841,1713531850829,-150.0,0.000155,4]
[322934842,1713531851745,-150.0,0.000155,4]
[322934843,1713531852417,-150.0,0.000155,4]
[322934844,1713531853792,-150.0,0.000155,4]
[322934845,1713531854999,-150.0,0.000155,4]
[322934846,1713531855938,-150.0,0.000155,4]
[322934847,1713531856908,-150.0,0.000155,4]
[322934848,1713531857466,-150.0,0.000155,4]
[322934849,1713531858530,-150.0,0.000154,2]
[322934850,1713531859144,-150.0,0.000154,2]
[322934851,1713531860963,-150.0,0.000154,2]
[322934852,1713531862606,-21.19310668,0.000154,2]
[322934853,1713531867097,558.95,0.0001468,2]
[322934854,1713531883015,150.0,0.00014752,2]
[322934855,1713531883039,4.89,0.00014752,2]
[322934856,1713531883281,145.11,0.00014944,2]
[322934857,1713531883311,9.78,0.00014944,2]
[322934858,1713531894815,150.0,0.0001478,2]
[322934859,1713531894835,150.0,0.0001478,2]
[322934860,1713531894856,150.0,0.0001478,2]
[322934861,1713531894876,150.0,0.0001478,2]
[322934862,1713531894896,150.0,0.0001478,2]
[322934863,1713531894917,173.30117884,0.0001478,2]
[322934864,1713531894941,476.69882116,0.0001478,2]
[322934870,1713532004111,160.87,0.00014551,2]
[322934871,1713532005552,190.69,0.00014551,2]
[322934872,1713532005788,190.69,0.00014624,2]
[322934873,1713532015233,730.18,0.00014543,2]
[322934874,1713532080254,183.38,0.000126,2]
[322934875,1713532080504,183.38,0.00014864,2]
[322934876,1713532131436,200.0,0.00014534,2]
[322934878,1713532156161,9510.09,0.00014527,2]
[322934883,1713532176965,737.6,0.00014518,2]
[322934884,1713532191377,150.0,0.00014509,2]
[322934894,1713532218838,166.21,0.0001611,15]
[322934895,1713532219544,280.56078847,0.00015,2]
[322934926,1713532232809,-620.244843,0.00015059,2]
[322934929,1713532232819,-153.656441,0.00015068,2]
[322934932,1713532232828,-702.89716768,0.00015135,2]
[322934935,1713532232837,-154.89,0.00015136,2]
[322934938,1713532232847,-318.87151828,0.00015218,2]
[322934941,1713532232857,-181.12848172,0.00015218,2]
[322934942,1713532232866,-79.55895388,0.00015328,2]
[322934943,1713532232915,-75.33104612,0.00015328,2]
[322934944,1713532232924,-238.0746,0.0001536,2]
[322934945,1713532232933,-150.0,0.00015399,2]
[322934946,1713532232943,-6374.39435388,0.000154,2]
[322934947,1713532232954,-2625.93244612,0.000154,2]
[322934948,1713532232963,-9078.89771669,0.00015413,2]
[322934949,1713532232972,-161.5228818,0.00015413,2]
[322934950,1713532232981,-374.02980748,0.00015415,2]
[322934951,1713532232990,-2109.61714291,0.00015415,2]
[322934960,1713532238312,-7890.38285709,0.00015415,2]
[322934961,1713532238322,-150.99,0.00015415,2]
[322934962,1713532238331,-191.60023848,0.00015422,2]
[322934963,1713532238340,-4819.72,0.00015422,2]
[322934964,1713532238350,-150.83,0.0001549,2]
[322934965,1713532238360,-969.46320387,0.00015497,2]
[322934966,1713532238370,-444.05092147,0.00015497,2]
[322934967,1713532238385,-13472.95430107,0.00015498,2]
[322934968,1713532238398,-9253.29849173,0.00015498,2]
[322934969,1713532238408,-1797.76,0.00015498,2]
[322934970,1713532238418,-3448.05,0.00015498,2]
[322934971,1713532238428,-1768.67,0.00015498,2]
[322934972,1713532238438,-605.67,0.00015498,2]
[322934973,1713532238449,-6758.09,0.00015498,2]
[322934974,1713532238458,-1159.83942051,0.00015498,2]
[322934975,1713532238470,-6477.02,0.00015498,2]
[322934976,1713532238481,-466.86765038,0.00015498,2]
[322935005,1713532239002,-3620.45292911,0.00015498,2]
[322935007,1713532239011,-9153.91,0.00015498,2]
[322935009,1713532239020,-17746.41,0.00015498,2]
[322935011,1713532239029,-11580.37,0.00015498,2]
[322935013,1713532239039,-2617.44,0.00015498,2]
[322935015,1713532239052,-7644.23,0.00015498,2]
[322935017,1713532239061,-5234.67,0.00015498,2]
[322935019,1713532239071,-854.05,0.00015498,2]
[322935021,1713532239080,-2685.66,0.00015498,2]
[322935023,1713532239090,-3070.06,0.00015498,2]
[322935025,1713532239099,-1791.99,0.00015498,2]
[322935027,1713532239108,-500.0,0.00015498,2]
[322935029,1713532239117,-2513.84257042,0.00015499,2]
[322935041,1713532239227,-1261.05235087,0.00015499,2]
[322935043,1713532239237,-16312.28912547,0.00015499,2]
[322935045,1713532239247,-5177.47,0.00015499,2]
[322935047,1713532239257,-1183.67718354,0.00015499,2]
[322935049,1713532239664,280.56078847,0.00015,2]
[322935052,1713532240398,-3223.77386999,0.00015499,2]
[322935053,1713532240410,-1232.36302238,0.00015499,2]
[322935054,1713532240422,-103.86310763,0.00015499,2]
[322935055,1713532240432,-208.15689236,0.00015499,2]
[322935056,1713532240444,-340.0090999,0.00015499,2]
[322935057,1713532240457,-3530.21463345,0.00015499,2]
[322935058,1713532240525,-299.8197336,0.00015499,2]
[322935059,1713532240611,-2248.19964069,0.00015499,2]
[322935060,1713532240620,-682.12537031,0.00015499,2]
[322935061,1713532240632,-662.3367656,0.00015499,2]
[322935062,1713532240643,-3039.1,0.00015499,2]
[322935063,1713532240655,-5386.15786409,0.00015499,2]
[322935064,1713532240664,-1866.79,0.00015499,2]
[322935065,1713532240673,-9814.97649539,0.00015499,2]
[322935068,1713532240723,-26046.24296875,0.00015499,2]
[322935069,1713532240735,-409.83004073,0.00015499,2]
[322935070,1713532240747,-2054.6215659,0.00015499,2]
[322935071,1713532240758,-40751.90892923,0.00015499,2]
[322935072,1713532240767,-8958.19,0.00015499,2]
[322935073,1713532240777,-500.0,0.00015499,2]
[322935074,1713532240786,-6525.34,0.00015499,2]
[322935075,1713532240796,-7689.17,0.00015499,2]
[322935076,1713532240806,-3253.74,0.00015499,2]
[322935078,1713532240816,-1225.82,0.00015499,2]
[322935080,1713532240825,-2453.28,0.00015499,2]
[322935081,1713532240834,-2691.62,0.00015499,2]
[322935082,1713532240843,-40985.69,0.00015499,2]
[322935083,1713532240852,-8581.72,0.00015499,2]
[322935084,1713532240862,-2855.57,0.00015499,2]
[322935085,1713532240871,-15010.66,0.00015499,2]
[322935086,1713532240882,-6371.74,0.00015499,2]
[322935087,1713532240892,-3718.07,0.00015499,2]
[322935088,1713532240901,-8705.51,0.00015499,2]
[322935089,1713532240910,-3365.53,0.00015499,2]
[322935090,1713532240921,-500.0,0.00015499,2]
[322935091,1713532240931,-17278.94,0.00015499,2]
[322935092,1713532240941,-6759.47,0.00015499,2]
[322935093,1713532240950,-3652.93,0.00015499,2]
[322935094,1713532240960,-10558.62,0.00015499,2]
[322935095,1713532240970,-3668.09,0.00015499,2]
[322935096,1713532240980,-4050.85,0.00015499,2]
[322935097,1713532240991,-12911.48,0.00015499,2]
[322935098,1713532241000,-6504.74,0.00015499,2]
[322935099,1713532241010,-3934.3,0.00015499,2]
[322935100,1713532241019,-4463.68,0.00015499,2]
[322935101,1713532241030,-2800.22,0.00015499,2]
[322935102,1713532241039,-4629.07,0.00015499,2]
[322935103,1713532241051,-500.0,0.00015499,2]
[322935104,1713532241060,-11074.49,0.00015499,2]
[322935105,1713532241069,-4375.87,0.00015499,2]
[322935106,1713532241078,-4552.46,0.00015499,2]
[322935107,1713532241088,-3459.29,0.00015499,2]
[322935108,1713532241097,-921.84,0.00015499,2]
[322935109,1713532241106,-17963.88,0.00015499,2]
[322935110,1713532241116,-500.0,0.00015499,2]
[322935111,1713532241125,-18018.07,0.00015499,2]
[322935112,1713532241136,-981.36114144,0.00015499,2]
[322935113,1713532241148,-1000.15620517,0.00015499,2]
[322935114,1713532241179,-610.51265339,0.00015499,2]
[322935115,1713532241188,-500.0,0.00015499,2]
[322935116,1713532241197,-1008.64845661,0.00015499,2]
[322935117,1713532241256,-6509.9,0.00015499,2]
[322935125,1713532243426,-479.55714262,0.00015498,2]
[322935126,1713532243438,-1473.47697837,0.00015498,2]
[322935127,1713532243449,-248.88587901,0.00015498,2]
[322935128,1713532243463,-790.01953414,0.00015498,2]
[322935129,1713532243502,-574.19046586,0.00015498,2]
[322935130,1713532243511,-249.50840756,0.00015498,2]
[322935131,1713532243523,-250.49159244,0.00015498,2]
[322935132,1713532243533,-141.80331133,0.00015499,2]
[322935133,1713532243566,-4537.74823206,0.00015499,2]
[322935134,1713532243575,-35065.43,0.00015499,2]
[322935135,1713532243584,-9588.93,0.00015499,2]
[322935136,1713532243593,-24204.86,0.00015499,2]
[322935137,1713532243603,-560.52,0.00015499,2]
[322935138,1713532243612,-564.76,0.00015499,2]
[322935139,1713532243621,-13854.16,0.00015499,2]
[322935140,1713532243630,-533993.59176794,0.000155,4]
[322935141,1713532243645,-806.1100004,0.000155,4]
[322935142,1713532243656,-686.000002,0.000155,4]
[322935143,1713532243667,-284.83040661,0.000155,4]
[322935144,1713532243678,-293.30521316,0.000155,4]
[322935145,1713532243689,-294.14994472,0.000155,4]
[322935146,1713532243700,-8095.4174114,0.000155,4]
[322935147,1713532243711,-412.4730256,0.000155,4]
[322935148,1713532243722,-2279.79820878,0.000155,4]
[322935149,1713532243751,-1793.3065851,0.000155,4]
[322935150,1713532243816,-2534.02923427,0.000155,4]
[322935163,1713532247443,-204.54682852,0.00015482,4]
[322935164,1713532247453,-433.53247002,0.00015497,2]
[322935165,1713532247467,-1180.44453008,0.00015497,2]
[322935166,1713532247476,-12899.55546992,0.000155,4]
[322935167,1713532247630,-11348.0463577,0.000155,4]
[322935168,1713532247643,-5025.92588816,0.000155,4]
[322935169,1713532247682,-378.79104645,0.000155,4]
[322935170,1713532247694,-297.20900393,0.000155,4]
[322935171,1713532247705,-750.52233814,0.000155,4]
[322935172,1713532247716,-277.5,0.000155,4]
[322935173,1713532247737,-5200.0,0.000155,4]
[322935174,1713532247748,-1325.8368,0.000155,4]
[322935175,1713532247785,-18229.60271524,0.000155,4]
[322935176,1713532247797,-1109.84463795,0.000155,4]
[322935177,1713532247808,-161.5228818,0.00015505,2]
[322935178,1713532247818,-726.0,0.00015509,2]
[322935179,1713532247827,-499.99,0.00015509,2]
[322935180,1713532247836,-1631.25195372,0.00015513,2]
[322935181,1713532247845,-1059.74600206,0.00015513,2]
[322935182,1713532247854,-156.05295641,0.00015513,2]
[322935183,1713532247864,-2402.48756872,0.00015513,2]
[322935184,1713532247873,-2357.76557745,0.00015513,2]
[322935185,1713532247882,-1014.83,0.00015513,2]
[322935186,1713532247892,-500.0,0.00015513,2]
[322935187,1713532247902,-887.48,0.00015513,2]
[322935188,1713532247912,-500.0,0.00015513,2]
[322935189,1713532247921,-1403.77,0.00015513,2]
[322935190,1713532247930,-2066.05,0.00015513,2]
[322935191,1713532247940,-2662.85,0.00015513,2]
[322935192,1713532247950,-500.0,0.00015513,2]
[322935193,1713532247959,-500.0,0.00015513,2]
[322935194,1713532247968,-500.0,0.00015513,2]
[322935195,1713532247977,-565.89701974,0.00015513,2]
[322935196,1713532247987,-1236.63,0.00015513,2]
[322935197,1713532247996,-500.0,0.00015513,2]
[322935198,1713532248006,-500.0,0.00015513,2]
[322935199,1713532248015,-756.21,0.00015513,2]
[322935200,1713532248025,-3747.15,0.00015513,2]
[322935201,1713532248034,-500.0,0.00015513,2]
[322935202,1713532248043,-500.0,0.00015513,2]
[322935203,1713532248054,-500.0,0.00015513,2]
[322935204,1713532248063,-530.23,0.00015513,2]
[322935205,1713532248072,-393.80437594,0.00015513,2]
[322935206,1713532248084,-2609.41562406,0.00015513,2]
[322935207,1713532248093,-500.0,0.00015513,2]
[322935208,1713532248102,-1874.88,0.00015513,2]
[322935209,1713532248111,-1133.89,0.00015513,2]
[322935210,1713532248121,-1245.95,0.00015513,2]
[322935211,1713532248130,-500.0,0.00015513,2]
[322935212,1713532248138,-182.31168228,0.00015513,2]
[322935213,1713532248153,-438.42831772,0.00015513,2]
[322935214,1713532248163,-153.70364303,0.00015513,2]
[322935215,1713532248174,-346.29635697,0.00015513,2]
[322935216,1713532248183,-7.91364303,0.00015513,2]
[322935217,1713532249318,150.0,0.00014509,2]
[322935218,1713532249341,150.0,0.00014509,2]
[322935219,1713532249361,150.0,0.00014509,2]
[322935220,1713532249385,150.0,0.00014509,2]
[322935221,1713532249405,150.0,0.00014509,2]
[322935222,1713532249427,141.65855736,0.00014509,2]
[322935224,1713532254642,150.0,0.00014509,2]
[322935225,1713532254663,13.38348545,0.00014509,2]
[322935226,1713532255659,136.61651455,0.00014509,2]
[322935227,1713532255679,150.0,0.00014509,2]
[322935228,1713532255699,121.48461939,0.00014509,2]
[322935229,1713532258953,28.51538061,0.00014509,2]
[322935230,1713532258974,126.93183488,0.00014509,2]
[322935231,1713532260205,23.06816512,0.00014509,2]
[322935232,1713532260225,150.0,0.00014509,2]
[322935233,1713532260246,150.0,0.00014509,2]
[322935234,1713532260266,150.0,0.00014509,2]
[322935235,1713532260286,150.0,0.00014509,2]
[322935236,1713532260307,185.40109037,0.00014509,2]
[322935237,1713532260332,6368.50821217,0.00014509,2]
[322935238,1713532263384,150.0,0.00015,2]
[322935239,1713532263408,5.0,0.00015,2]
[322935240,1713532266793,150.0,0.00014509,2]
[322935241,1713532266815,150.0,0.00014509,2]
[322935242,1713532266840,150.0,0.00014509,2]
[322935243,1713532266862,150.0,0.00014509,2]
[322935244,1713532266883,150.0,0.00014509,2]
[322935245,1713532266904,150.0,0.00014509,2]
[322935246,1713532266924,150.0,0.00014509,2]
[322935247,1713532266945,150.0,0.00014509,2]
[322935248,1713532266966,150.0,0.00014509,2]
[322935249,1713532266986,120.17906822,0.00014509,2]
[322935250,1713532267266,29.82093178,0.00014509,2]
[322935251,1713532267287,150.0,0.00014509,2]
[322935252,1713532267308,150.0,0.00014509,2]
[322935253,1713532267330,150.0,0.00014509,2]
[322935254,1713532267351,150.0,0.00014509,2]
[322935255,1713532267372,150.0,0.00014509,2]
[322935256,1713532267398,150.0,0.00014509,2]
[322935257,1713532267418,64.73247966,0.00014509,2]
[322935258,1713532270316,150.0,0.00014509,2]
[322935259,1713532270341,150.0,0.00014509,2]
[322935260,1713532270361,150.0,0.00014509,2]
[322935261,1713532270382,12.77853998,0.00014509,2]
[322935262,1713532283377,150.0,0.00015,2]
[322935263,1713532283401,5.0,0.00015,2]
[322935265,1713532299964,150.0,0.00015,2]
[322935266,1713532299985,5.0,0.00015,2]
[322935267,1713532302099,145.0,0.00015,2]
[322935268,1713532302121,150.0,0.00015,2]
[322935269,1713532302142,150.0,0.00015,2]
[322935270,1713532302163,184.3048824,0.00015,2]
[322935271,1713532302186,620.6951176,0.00015,2]
[322935272,1713532312905,478.61,0.00014718,2]
[322935273,1713532319424,155.0,0.00015,2]
[322935274,1713532337589,155.0,0.00015,2]
[322935275,1713532356308,155.0,0.00015,2]
[322935276,1713532375384,155.0,0.00015,2]
[322935277,1713532399398,155.0,0.00015,2]
[322935278,1713532425441,162.93109054,0.00015,2]
[322935281,1713532498099,486.78,0.00014573,2]
[322935297,1713532568579,206.88,0.00012627,2]
[322935298,1713532568684,206.88,0.00014891,2]
[322935300,1713532622456,264.124201,0.00014989,2]
[322935304,1713532676054,195.55605584,0.00014989,2]
[322935305,1713532679831,409.92,0.00014553,2]
[322935306,1713532693974,155.0,0.00014989,2]
[322935307,1713532713979,155.0,0.00014989,2]
[322935314,1713532729978,155.0,0.00014989,2]
[322935326,1713532742511,166.21,0.0001611,15]
[322935327,1713532750075,155.0,0.00014989,2]
[322935329,1713532770393,270.8664766,0.00014989,2]
[322935343,1713532828184,157.63,0.00014641,2]
[322935344,1713532896184,155.0,0.00015019,2]
[322935355,1713532946993,6631.36895226,0.00015019,2]
[322935356,1713532947442,6084.18791858,0.00015,2]
[322935357,1713533002128,490.05983197,0.00015019,2]
[322935358,1713533015192,2402.56906531,0.00015015,2]
[322935359,1713533058520,324.18,0.00014507,2]
[322935360,1713533061126,173.72258374,0.00014921,2]
[322935361,1713533080287,490.05983197,0.00015019,2]
[322935362,1713533087719,155.0,0.00015019,2]
[322935373,1713533145171,20000.0,0.0001502,2]
[322935374,1713533157435,255.32117245,0.00015019,2]
[322935375,1713533164305,155.0,0.00015019,2]
[322935376,1713533171289,672.06,0.00014521,2]
[322935377,1713533173070,186.19,0.00012603,2]
[322935378,1713533173662,186.19,0.00014867,2]
[322935379,1713533236699,166.21,0.0001611,15]
[322935380,1713533283747,80593.11765799,0.00015,2]
[322935381,1713533356554,202.23587417,0.00015019,2]
[322935383,1713533366130,1868.83458131,0.00015019,2]
[322935384,1713533386314,155.0,0.00015019,2]
[322935385,1713533389469,-169.21327139,0.0001502,2]
[322935386,1713533403276,150.0,0.00015019,2]
[322935402,1713533432443,-539.95896549,0.0001502,2]
[322935403,1713533432487,-466.33962102,0.0001502,2]
[322935404,1713533432538,-12076.0,0.0001502,2]
[322935405,1713533432549,-14337.999998,0.0001502,2]
[322935406,1713533432561,-2464.76794777,0.0001502,2]
[322935407,1713533432624,-323.77,0.0001502,2]
[322935422,1713533437956,-44.99669378,0.0001502,2]
[322935423,1713533437965,-255.32117245,0.00015021,2]
[322935424,1713533437974,-157.37084,0.00015068,2]
[322935426,1713533437983,-169.21327139,0.00015199,2]
[322935428,1713533437997,-198.3955,0.0001536,2]
[322935430,1713533438006,-8407.73797743,0.00015397,2]
[322935432,1713533438015,-169.29429609,0.00015398,2]
[322935434,1713533438025,-6765.6926,0.00015399,2]
[322935436,1713533438034,-1360.0,0.000154,2]
[322935438,1713533438044,-1298.70833345,0.00015413,2]
[322935519,1713533439624,-4380.0638,0.00015395,2]
[322935520,1713533439634,-8701.29166655,0.00015413,2]
[322935521,1713533439643,-150.99,0.00015413,2]
[322935522,1713533439652,-499.99,0.00015413,2]
[322935523,1713533439906,-150.99,0.00015413,2]
[322935525,1713533439994,-150.83,0.00015486,2]
[322935526,1713533440003,-264.87587186,0.00015493,2]
[322935528,1713533440013,-155.0,0.00015493,2]
[322935530,1713533440022,-201.71029151,0.00015493,2]
[322935531,1713533440031,-940.40191452,0.00015493,2]
[322935533,1713533440040,-155.0,0.00015493,2]
[322935535,1713533440048,-155.0,0.00015494,2]
[322935537,1713533440057,-3385.17749074,0.00015494,2]
[322935539,1713533440066,-1229.11,0.00015494,2]
[322935541,1713533440075,-2508.38,0.00015494,2]
[322935543,1713533440084,-972.55,0.00015494,2]
[322935545,1713533440093,-850.5,0.00015494,2]
[322935547,1713533440103,-500.0,0.00015494,2]
[322935549,1713533440112,-1064.14,0.00015494,2]
[322935551,1713533440121,-500.0,0.00015494,2]
[322935553,1713533440131,-2171.36,0.00015494,2]
[322935555,1713533440140,-500.0,0.00015494,2]
[322935557,1713533440148,-500.0,0.00015494,2]
[322935559,1713533440158,-2445.56,0.00015494,2]
[322935561,1713533440167,-1717.32,0.00015494,2]
[322935563,1713533440176,-500.0,0.00015494,2]
[322935565,1713533440185,-1345.28,0.00015494,2]
[322935567,1713533440194,-559.51,0.00015494,2]
[322935569,1713533440203,-508.88,0.00015494,2]
[322935571,1713533440213,-1331.29,0.00015494,2]
[322935573,1713533440223,-500.0,0.00015494,2]
[322935575,1713533440232,-1789.01,0.00015495,2]
[322935577,1713533440243,-5727.07,0.00015495,2]
[322935579,1713533440253,-82971.56,0.00015495,2]
[322935581,1713533440263,-6253.45,0.00015495,2]
[322935583,1713533440272,-13472.71,0.00015495,2]
[322935585,1713533440282,-500.0,0.00015495,2]
[322935587,1713533440291,-3139.0,0.00015495,2]
[322935589,1713533440300,-773.9,0.00015495,2]
[322935591,1713533440309,-5483.15,0.00015495,2]
[322935593,1713533440318,-2351.06,0.00015495,2]
[322935595,1713533440327,-6853.45,0.00015495,2]
[322935597,1713533440336,-6106.25,0.00015495,2]
[322935599,1713533440345,-1722.85,0.00015495,2]
[322935601,1713533440354,-9819.48,0.00015495,2]
[322935603,1713533440364,-14385.21,0.00015495,2]
[322935605,1713533440373,-3304.38,0.00015495,2]
[322935607,1713533440382,-3225.3,0.00015495,2]
[322935609,1713533440392,-3563.15,0.00015495,2]
[322935611,1713533440400,-1694.98,0.00015495,2]
[322935613,1713533440410,-8342.78,0.00015495,2]
[322935615,1713533440419,-580.44,0.00015495,2]
[322935617,1713533440428,-500.0,0.00015495,2]
[322935619,1713533440437,-16558.99,0.00015495,2]
[322935621,1713533440447,-9700.02,0.00015495,2]
[322935623,1713533440455,-3500.72,0.00015495,2]
[322935625,1713533440465,-6477.83,0.00015495,2]
[322935627,1713533440474,-10118.68,0.00015495,2]
[322935629,1713533440483,-6476.5,0.00015495,2]
[322935631,1713533440494,-3515.25,0.00015495,2]
[322935633,1713533440503,-3882.07,0.00015495,2]
[322935635,1713533440511,-6233.71,0.00015495,2]
[322935637,1713533440520,-11235.68,0.00015495,2]
[322935639,1713533440529,-8764.56,0.00015495,2]
[322935641,1713533440538,-4277.69,0.00015495,2]
[322935643,1713533440548,-4332.42,0.00015495,2]
[322935645,1713533440557,-17006.98,0.00015495,2]
[322935647,1713533440568,-4436.19,0.00015495,2]
[322935649,1713533440577,-2683.55,0.00015495,2]
[322935651,1713533440586,-11097.85,0.00015495,2]
[322935653,1713533440595,-4193.55,0.00015495,2]
[322935655,1713533440604,-10613.05,0.00015495,2]
[322935658,1713533440614,-7325.72,0.00015495,2]
[322935659,1713533440623,-4362.78,0.00015495,2]
[322935662,1713533440632,-883.43,0.00015495,2]
[322935663,1713533440642,-3315.15,0.00015495,2]
[322935666,1713533440651,-5016.56,0.00015495,2]
[322935668,1713533440661,-2151.92,0.00015495,2]
[322935670,1713533440670,-500.0,0.00015495,2]
[322935672,1713533440679,-19841.34,0.00015495,2]
[322935674,1713533440688,-2942.14,0.00015495,2]
[322935676,1713533440697,-500.0,0.00015495,2]
[322935677,1713533440706,-3361.98395904,0.00015495,2]
[322935679,1713533440719,-264.76253267,0.00015495,2]
[322935681,1713533440730,-2556.22931266,0.00015495,2]
[322935683,1713533440752,-3034.31323996,0.00015495,2]
[322935684,1713533440852,-2472.55095567,0.00015495,2]
[322935685,1713533440874,-3997.54904434,0.00015495,2]
[322935686,1713533440913,-29606.82095566,0.00015495,2]
[322935687,1713533440961,-9189.39,0.00015495,2]
[322935688,1713533441024,-2110.17,0.00015495,2]
[322935689,1713533441033,-23196.32,0.00015495,2]
[322935690,1713533441042,-518.29904434,0.00015495,2]
[322935691,1713533441110,-18.86095566,0.00015495,2]
[322935692,1713533441119,-429.62779026,0.00015495,2]
[322935693,1713533441130,-914.2541502,0.00015495,2]
[322935694,1713533441174,-991.10052887,0.00015495,2]
[322935695,1713533441185,-1073.10033886,0.00015495,2]
[322935696,1713533441210,-651.67241282,0.00015495,2]
[322935697,1713533441221,-359.45574608,0.00015495,2]
[322935698,1713533441232,-602.21903291,0.00015495,2]
[322935699,1713533441241,-500.0,0.00015495,2]
[322935700,1713533441257,-13276.91,0.00015495,2]
[322935701,1713533441266,-6350.3,0.00015495,2]
[322935702,1713533441275,-278.75081722,0.00015496,2]
[322935737,1713533443860,-249.35320498,0.00015415,2]
[322935738,1713533443869,-500.0,0.00015494,2]
[322935739,1713533443878,-221.24918278,0.00015496,2]
[322935740,1713533443888,-500.0,0.00015496,2]
[322935741,1713533443898,-500.0,0.00015496,2]
[322935742,1713533443907,-500.0,0.00015496,2]
[322935743,1713533443916,-500.0,0.00015496,2]
[322935744,1713533443925,-500.0,0.00015496,2]
[322935745,1713533443935,-500.0,0.00015496,2]
[322935746,1713533443944,-3591.02,0.00015496,2]
[322935747,1713533443953,-500.0,0.00015496,2]
[322935748,1713533443963,-500.0,0.00015496,2]
[322935749,1713533443972,-500.0,0.00015496,2]
[322935750,1713533443981,-3198.93985479,0.00015496,2]
[322935751,1713533444074,-2878.08,0.00015494,2]
[322935752,1713533444083,-909.25014521,0.00015496,2]
[322935753,1713533444092,-500.0,0.00015496,2]
[322935754,1713533444102,-500.0,0.00015496,2]
[322935755,1713533444111,-500.0,0.00015496,2]
[322935756,1713533444120,-1242.59,0.00015496,2]
[322935757,1713533444128,-3285.44,0.00015496,2]
[322935758,1713533444137,-500.0,0.00015496,2]
[322935759,1713533444146,-500.0,0.00015496,2]
[322935760,1713533444157,-2960.95,0.00015496,2]
[322935761,1713533444166,-5059.76,0.00015496,2]
[322935762,1713533444175,-500.0,0.00015496,2]
[322935763,1713533444184,-5022.89,0.00015496,2]
[322935764,1713533444193,-233.00533418,0.00015496,2]
[322935770,1713533445672,-3873.86,0.00015494,2]
[322935771,1713533445681,-1201.37,0.00015494,2]